bitfinex/quotes_BTCUSD_20240620
["timestamp","ask_amount","ask_price","bid_price","bid_amount"]
[1718905680139,0.05916062,64860.0,64852.0,0.01017405]
[1718905680349,0.2831,64861.0,64848.0,0.01017405]
[1718905680350,0.1831,64856.0,64848.0,0.01017405]
[1718905681857,0.1831,64856.0,64850.0,0.01017405]
[1718905682096,0.012,64860.0,64856.0,0.01017405]
[1718905682314,0.012,64860.0,64858.0,0.01017405]
[1718905682526,0.006,64860.0,64858.0,0.01017405]
[1718905682740,0.17187234,64862.0,64858.0,0.01017405]
[1718905682956,0.07187234,64862.0,64858.0,0.01017405]
[1718905683330,0.08116,64865.0,64858.0,0.01017405]
[1718905683535,0.005,64860.0,64858.0,0.01017405]
[1718905684328,0.015586,64860.0,64852.0,0.01017405]
[1718905684971,0.015586,64860.0,64855.0,0.01017405]
[1718905685126,0.010586,64860.0,64855.0,0.01017405]
[1718905685300,0.01844711,64859.0,64855.0,0.01017405]
[1718905686611,0.01844711,64859.0,64858.0,0.01017405]
[1718905686775,0.004,64859.0,64858.0,0.01017405]
[1718905686958,0.004,64859.0,64858.0,0.02893735]
[1718905688236,0.01,64860.0,64858.0,0.02893735]
[1718905688445,0.07388513,64863.0,64862.0,0.01017405]
[1718905688841,0.07388513,64863.0,64854.0,0.01017405]
[1718905689220,0.07388513,64863.0,64856.0,0.01017405]
[1718905689440,0.005,64860.0,64857.0,0.01017405]
[1718905689631,0.01297451,64860.0,64856.0,0.01017405]
[1718905689781,0.01297451,64860.0,64857.0,0.01017405]
[1718905689986,0.01297451,64860.0,64856.0,0.00249405]
[1718905690185,0.01297451,64860.0,64855.0,0.00249405]
[1718905690385,0.00797451,64860.0,64855.0,0.00249405]
[1718905690667,0.00797451,64860.0,64857.0,0.00249405]
[1718905690867,0.00797451,64860.0,64852.0,0.15256112]
[1718905690868,0.02418761,64859.0,64856.0,0.00249405]
[1718905691036,0.02418761,64859.0,64855.0,0.00249405]
[1718905691240,0.02418761,64859.0,64850.0,0.0087633]
[1718905691241,0.11048761,64859.0,64848.0,0.00249405]
[1718905692599,0.11048761,64859.0,64850.0,0.00249405]
[1718905692761,0.11048761,64859.0,64851.0,0.00249405]
[1718905692940,0.05860441,64858.0,64851.0,0.00249405]
[1718905693531,0.05860441,64858.0,64852.0,0.00249405]
[1718905693826,0.05860441,64858.0,64854.0,0.00249405]
[1718905694028,0.03018761,64859.0,64858.0,0.02125735]
[1718905694239,0.03018761,64859.0,64858.0,0.17381847]
[1718905694442,0.03018761,64859.0,64858.0,0.26051847]
[1718905694824,0.03018761,64859.0,64858.0,0.37641847]
[1718905695030,0.02418761,64859.0,64858.0,0.37641847]
[1718905695523,0.02618761,64859.0,64858.0,0.37641847]
[1718905696810,0.02418761,64859.0,64858.0,0.37641847]
[1718905697211,0.02518761,64859.0,64858.0,0.37741847]
[1718905697790,0.02618761,64859.0,64858.0,0.37741847]
[1718905697991,0.02618761,64859.0,64858.0,0.36741847]
[1718905698226,0.02618761,64859.0,64858.0,0.37741847]
[1718905698538,0.02618761,64859.0,64858.0,0.36741847]
[1718905698738,0.2241935,64883.0,64869.0,0.00249405]
[1718905698991,0.023,64882.0,64869.0,0.00249405]
[1718905699182,0.02418286,64880.0,64869.0,0.00249405]
[1718905699586,0.02418286,64880.0,64859.0,0.07628172]
[1718905699587,0.02418286,64880.0,64870.0,0.00249405]
[1718905699965,0.02418286,64880.0,64868.0,0.00249405]
[1718905700171,0.02418286,64880.0,64869.0,0.00249405]
[1718905700381,0.02418286,64880.0,64870.0,0.00249405]
[1718905701002,0.02418286,64880.0,64869.0,0.00249405]
[1718905701157,0.05218286,64880.0,64869.0,0.00249405]
[1718905701359,0.05218286,64880.0,64868.0,0.1874]
[1718905701360,0.03818286,64880.0,64862.0,0.00249405]
[1718905701586,0.1831,64875.0,64862.0,0.00249405]
[1718905701999,0.1831,64875.0,64861.0,0.1895]
[1718905702253,0.1831,64875.0,64847.0,0.11]
[1718905702254,0.0846,64869.0,64856.0,0.0802]
[1718905702543,0.0846,64869.0,64852.0,0.0802]
[1718905702544,0.1831,64865.0,64852.0,0.0802]
[1718905702755,0.1031,64868.0,64848.0,0.54698439]
[1718905702756,0.0849,64859.0,64848.0,0.54698439]
[1718905702906,0.0801,64858.0,64848.0,0.0868]
[1718905703175,0.0801,64858.0,64848.0,0.08929405]
[1718905703176,0.12253817,64858.0,64848.0,0.08929405]
[1718905703346,0.12253817,64858.0,64846.0,0.1269633]
[1718905703347,0.1831,64855.0,64846.0,0.1082]
[1718905703549,0.03481,64854.0,64846.0,0.1082]
[1718905704411,0.03481,64854.0,64848.0,0.00249405]
[1718905704617,0.03481,64854.0,64847.0,0.00249405]
[1718905704861,0.04581,64854.0,64847.0,0.00249405]
[1718905705197,0.04581,64854.0,64848.0,0.00249405]
[1718905705414,0.032201,64853.0,64848.0,0.00249405]
[1718905705824,0.011,64854.0,64848.0,0.00249405]
[1718905706041,0.022,64854.0,64848.0,0.00249405]
[1718905706618,0.011,64854.0,64848.0,0.00249405]
[1718905706819,0.018,64854.0,64848.0,0.00249405]
[1718905707251,0.0801,64858.0,64848.0,0.00249405]
[1718905707403,0.006,64853.0,64848.0,0.00249405]
[1718905708088,0.006,64853.0,64846.0,0.11069405]
[1718905708226,0.006,64853.0,64847.0,0.00249405]
[1718905708426,0.006,64853.0,64846.0,0.1082]
[1718905708806,0.014,64853.0,64846.0,0.1082]
[1718905709025,0.008,64853.0,64846.0,0.1082]
[1718905710010,0.009,64853.0,64846.0,0.1082]
[1718905710248,0.017,64853.0,64846.0,0.1082]
[1718905710422,0.017,64853.0,64848.0,0.00249405]
[1718905710634,0.017,64853.0,64852.0,0.02125735]
[1718905710835,0.017,64853.0,64852.0,0.10895735]
[1718905711234,0.017,64853.0,64852.0,0.10891708]
[1718905711664,0.017,64853.0,64852.0,0.2714782]
[1718905711665,0.009,64853.0,64852.0,0.2714782]
[1718905711867,0.017,64853.0,64852.0,0.41235419]
[1718905712012,0.008,64853.0,64852.0,0.41235419]
[1718905712409,0.017,64853.0,64852.0,0.41235419]
[1718905712821,0.008,64853.0,64852.0,0.41235419]
[1718905713243,0.04426627,64858.0,64852.0,0.41235419]
[1718905713244,0.04426627,64858.0,64857.0,0.02121708]
[1718905713475,0.4788,64865.0,64864.0,0.00245378]
[1718905713677,0.13819824,64866.0,64865.0,0.00245378]
[1718905713878,0.15563801,64874.0,64869.0,0.00245378]
[1718905714104,0.5597,64876.0,64869.0,0.00245378]
[1718905714302,0.1383544,64871.0,64868.0,0.00245378]
[1718905714503,0.1383544,64870.0,64862.0,0.00245378]
[1718905714705,0.007,64865.0,64862.0,0.00245378]
[1718905714905,0.1383544,64868.0,64862.0,0.00245378]
[1718905715409,0.1831,64866.0,64858.0,0.00245378]
[1718905715742,0.1831,64866.0,64856.0,0.0982633]
[1718905715743,0.1383544,64864.0,64856.0,0.0795]
[1718905715920,0.1831,64866.0,64857.0,0.001]
[1718905715921,0.1383544,64863.0,64857.0,0.001]
[1718905716127,0.0809,64865.0,64857.0,0.001]
[1718905716128,0.1383544,64862.0,64857.0,0.001]
[1718905716326,0.1383544,64863.0,64858.0,0.00245378]
[1718905716708,0.0809,64865.0,64858.0,0.00245378]
[1718905716913,0.1383401,64863.0,64858.0,0.00245378]
[1718905717607,0.1433401,64863.0,64858.0,0.00245378]
[1718905718342,0.1383401,64862.0,64861.0,0.02121708]
[1718905718546,0.01,64863.0,64862.0,0.00245378]
[1718905719183,0.005,64863.0,64862.0,0.00245378]
[1718905720258,0.0809,64865.0,64863.0,0.00245378]
[1718905721724,0.0879,64865.0,64863.0,0.00245378]
[1718905722448,0.0959,64865.0,64863.0,0.00245378]
[1718905722665,0.015,64865.0,64863.0,0.00245378]
[1718905722993,0.015,64865.0,64864.0,0.00245378]
[1718905723736,0.015,64865.0,64864.0,0.02121708]
[1718905723936,0.008,64865.0,64864.0,0.02121708]
[1718905724377,0.015,64865.0,64864.0,0.02121708]
[1718905724731,0.06154885,64874.0,64864.0,0.04275879]
[1718905725112,0.02418286,64880.0,64870.0,0.00245378]
[1718905725302,0.02418286,64880.0,64864.0,0.02154171]
[1718905725303,0.02418286,64880.0,64873.0,0.00245378]
[1718905725531,0.22749071,64877.0,64873.0,0.00245378]
[1718905726055,0.22749071,64877.0,64872.0,0.00245378]
[1718905726256,0.24149071,64877.0,64872.0,0.00245378]
[1718905726729,0.22749071,64877.0,64869.0,0.00245378]
[1718905726925,0.24149071,64877.0,64869.0,0.00245378]
[1718905727157,0.23749071,64877.0,64869.0,0.00245378]
[1718905727314,0.26558196,64877.0,64869.0,0.00245378]
[1718905727507,0.27458196,64877.0,64869.0,0.00245378]
[1718905727713,0.26558196,64877.0,64869.0,0.00245378]
[1718905728095,0.27458196,64877.0,64869.0,0.00345378]
[1718905728434,0.26458196,64877.0,64872.0,0.00245378]
[1718905728644,0.27358196,64877.0,64872.0,0.00245378]
[1718905729368,0.26458196,64877.0,64872.0,0.00245378]
[1718905729796,0.26458196,64877.0,64872.0,0.00345378]
[1718905730640,0.27358196,64877.0,64872.0,0.00445378]
[1718905731979,0.27358196,64877.0,64874.0,0.00245378]
[1718905732450,0.09048196,64877.0,64874.0,0.00245378]
[1718905732949,0.08148196,64877.0,64874.0,0.00245378]
[1718905733059,0.09148196,64877.0,64874.0,0.00345378]
[1718905733259,0.08248196,64877.0,64874.0,0.00345378]
[1718905733662,0.09148196,64877.0,64874.0,0.00445378]
[1718905734662,0.09148196,64877.0,64874.0,0.002]
[1718905735740,0.27458196,64877.0,64874.0,0.002]
[1718905737538,0.27458196,64877.0,64874.0,0.00445378]
[1718905740204,0.09148196,64877.0,64876.0,0.00245378]
[1718905740405,0.09148196,64877.0,64874.0,0.002]
[1718905740610,0.09148196,64877.0,64874.0,0.00445378]
[1718905740796,0.09148196,64877.0,64874.0,0.002]
[1718905740996,0.09148196,64877.0,64874.0,0.00445378]
[1718905741391,0.08148196,64877.0,64874.0,0.00345378]
[1718905741698,0.09048196,64877.0,64876.0,0.001]
[1718905742299,0.09048196,64877.0,64874.0,0.001]
[1718905742300,0.08148196,64877.0,64874.0,0.001]
[1718905742792,0.08148196,64877.0,64876.0,0.084]
[1718905743655,0.08148196,64877.0,64876.0,0.085]
[1718905743656,0.09048196,64877.0,64876.0,0.085]
[1718905744058,0.11784016,64877.0,64876.0,0.001]
[1718905744301,0.09048196,64877.0,64876.0,0.00345378]
[1718905744718,0.08148196,64877.0,64876.0,0.00345378]
[1718905744837,0.09048196,64877.0,64876.0,0.00445378]
[1718905745332,0.09048196,64877.0,64876.0,0.02321708]
[1718905745543,0.09048196,64877.0,64876.0,0.12491708]
[1718905745749,0.09048196,64877.0,64876.0,0.20741708]
[1718905747271,0.09048196,64877.0,64876.0,0.18865378]
[1718905748109,0.09048196,64877.0,64876.0,0.20741708]
[1718905748362,0.09048196,64877.0,64876.0,0.18865378]
[1718905748763,0.09048196,64877.0,64876.0,0.002]
[1718905752061,0.11466462,64877.0,64876.0,0.002]
[1718905752966,0.35894901,64877.0,64865.0,0.0804]
[1718905753258,0.1831,64871.0,64865.0,0.0804]
[1718905754196,0.1831,64871.0,64865.0,0.0814]
[1718905754815,0.1841,64871.0,64865.0,0.0814]
[1718905755102,0.1841,64871.0,64865.0,0.0804]
[1718905755459,0.34165661,64871.0,64865.0,0.0804]
[1718905755660,0.1861,64871.0,64865.0,0.08285378]
[1718905756295,0.34165661,64871.0,64865.0,0.08285378]
[1718905756651,0.03416566,64870.0,64865.0,0.08285378]
[1718905756865,0.03416566,64870.0,64865.0,0.0804]
[1718905757668,0.18084901,64877.0,64873.0,0.12881708]
[1718905757669,0.15573656,64874.0,64873.0,0.12881708]
[1718905757867,0.15573656,64874.0,64869.0,0.07628172]
[1718905757868,0.06857337,64877.0,64876.0,0.22191708]
[1718905758093,0.06755059,64877.0,64876.0,0.22191708]
[1718905758298,0.02418266,64877.0,64876.0,0.22191708]
[1718905758547,0.02418266,64877.0,64876.0,0.46630879]
[1718905759029,0.02418266,64877.0,64876.0,0.41686991]
[1718905759877,0.02418266,64877.0,64876.0,0.61886991]
[1718905760076,0.02418266,64877.0,64876.0,0.71886991]
[1718905760287,0.4788,64896.0,64876.0,0.71886991]
[1718905760288,0.4788,64896.0,64883.0,0.02]
[1718905760535,0.00862,64904.0,64883.0,0.44265992]
[1718905760793,0.04504027,64885.0,64883.0,0.44265992]
[1718905760989,0.04504027,64885.0,64883.0,0.54265992]
[1718905761623,0.01062,64884.0,64883.0,0.55665992]
[1718905762232,0.00962,64884.0,64883.0,0.54765992]
[1718905762446,0.00962,64884.0,64883.0,0.65093591]
[1718905762658,0.00962,64884.0,64883.0,0.85293591]
[1718905762856,0.00962,64884.0,64883.0,0.65093591]
[1718905763063,0.00862,64884.0,64883.0,0.64593591]
[1718905763267,0.00862,64884.0,64883.0,0.65093591]
[1718905763470,0.00962,64884.0,64883.0,0.65093591]
[1718905764057,0.00962,64884.0,64883.0,0.85293591]
[1718905764271,0.00862,64904.0,64888.0,0.21011708]
[1718905764450,0.00862,64904.0,64888.0,0.76960179]
[1718905765053,0.02733253,64902.0,64888.0,0.76960179]
[1718905765715,0.00862,64904.0,64889.0,0.23321708]
[1718905765915,0.00862,64917.0,64889.0,0.23321708]
[1718905765916,0.00862,64917.0,64909.0,0.21011708]
[1718905766117,0.00861,64924.0,64909.0,0.71211708]
[1718905766315,0.00861,64924.0,64909.0,0.89521708]
[1718905766587,0.0460772,64922.0,64909.0,0.89521708]
[1718905767157,0.00861,64924.0,64909.0,0.89521708]
[1718905767534,0.00861,64924.0,64923.0,0.21661708]
[1718905767736,0.00861,64924.0,64923.0,0.31661708]
[1718905767912,0.00861,64924.0,64923.0,0.50083991]
[1718905769201,0.00861,64924.0,64923.0,0.51483991]
[1718905770027,0.00961,64924.0,64923.0,0.52883991]
[1718905770456,0.00961,64924.0,64923.0,0.71683991]
[1718905770678,0.00961,64924.0,64923.0,0.73083991]
[1718905771285,0.01061,64924.0,64923.0,0.74483991]
[1718905771498,0.01061,64924.0,64923.0,0.54283991]
[1718905772249,0.01061,64924.0,64923.0,0.74483991]
[1718905772666,0.01061,64924.0,64923.0,0.54283991]
[1718905776139,0.01061,64924.0,64923.0,0.5111782]
[1718905776335,0.01061,64924.0,64923.0,0.5011782]
[1718905776540,0.01061,64924.0,64923.0,0.3157782]
[1718905776772,0.01061,64924.0,64923.0,0.2157782]
[1718905777176,0.00961,64924.0,64923.0,0.2017782]
[1718905777558,0.00861,64924.0,64923.0,0.1807782]
[1718905777758,0.00861,64924.0,64923.0,0.1887782]
[1718905777962,0.00961,64924.0,64923.0,0.1817782]
[1718905778165,0.00961,64924.0,64923.0,0.1737782]
[1718905778363,0.01061,64924.0,64923.0,0.1987782]
[1718905778623,0.01161,64924.0,64923.0,0.1987782]
[1718905778917,0.00961,64924.0,64923.0,0.1737782]
[1718905779364,0.01061,64924.0,64923.0,0.1857782]
[1718905780122,0.01161,64924.0,64923.0,0.1997782]
[1718905780565,0.00961,64924.0,64923.0,0.1857782]
[1718905780878,0.00961,64924.0,64923.0,0.1837782]
[1718905781218,0.01061,64924.0,64923.0,0.1857782]
[1718905781506,0.01161,64924.0,64923.0,0.1997782]
[1718905781644,0.01061,64924.0,64923.0,0.1877782]
[1718905781886,0.01161,64924.0,64923.0,0.1997782]
[1718905782468,0.01061,64924.0,64923.0,0.1877782]
[1718905782667,0.01161,64924.0,64923.0,0.1967782]
[1718905783674,0.01161,64924.0,64923.0,0.2087782]
[1718905783873,0.01261,64924.0,64923.0,0.2087782]
[1718905784080,0.03376993,64924.0,64923.0,0.1827782]
[1718905785984,0.03376993,64924.0,64923.0,0.21205602]
[1718905786195,0.03376993,64924.0,64923.0,0.39665602]
[1718905786606,0.03376993,64924.0,64923.0,0.49665602]
[1718905787155,0.03276993,64924.0,64923.0,0.48765602]
[1718905787509,0.03376993,64924.0,64923.0,0.49765602]
[1718905787687,0.03476993,64924.0,64923.0,0.50865602]
[1718905787896,1e-08,64924.0,64923.0,0.49865602]
[1718905788304,0.00100001,64924.0,64923.0,0.71465602]
[1718905788508,0.00100001,64924.0,64923.0,0.51265602]
[1718905788881,0.001,64924.0,64923.0,0.50165602]
[1718905789252,0.001,64924.0,64923.0,0.70365602]
[1718905789462,0.00861,64930.0,64929.0,0.31621708]
[1718905789662,0.00861,64930.0,64929.0,0.71929991]
[1718905789867,0.00861,64930.0,64929.0,0.79558163]
[1718905790235,0.00861,64930.0,64929.0,0.99558163]
[1718905790547,0.00861,64930.0,64929.0,0.79358163]
[1718905790806,0.00961,64930.0,64929.0,1.02358163]
[1718905791203,0.00961,64930.0,64929.0,0.99558163]
[1718905791400,0.40315633,64963.0,64954.0,0.00245378]
[1718905791600,0.244814,64964.0,64954.0,0.00245378]
[1718905791802,0.1831,64964.0,64956.0,0.00245378]
[1718905792002,0.1831,64964.0,64943.0,0.01]
[1718905792003,0.023,64963.0,64954.0,0.00245378]
[1718905792207,0.023,64963.0,64956.0,0.00245378]
[1718905792381,0.023,64963.0,64943.0,0.24556112]
[1718905792382,0.023,64963.0,64954.0,0.00245378]
[1718905793080,0.023,64963.0,64952.0,0.00245378]
[1718905793289,0.023,64963.0,64954.0,0.00245378]
[1718905793995,0.023,64963.0,64952.0,0.00245378]
[1718905794194,0.0792,64962.0,64954.0,0.002]
[1718905794577,0.12485286,64961.0,64954.0,0.002]
[1718905794926,0.12485286,64961.0,64952.0,0.00245378]
[1718905795133,0.1831,64959.0,64946.0,0.00245378]
[1718905795332,0.12485286,64961.0,64946.0,0.00245378]
[1718905795333,0.1831,64954.0,64952.0,0.002]
[1718905795677,0.1831,64954.0,64952.0,0.001]
[1718905795795,0.1831,64954.0,64946.0,0.00245378]
[1718905795796,0.1007,64953.0,64946.0,0.00245378]
[1718905796154,0.1007,64953.0,64952.0,0.001]
[1718905796803,0.1883,64953.0,64952.0,0.001]
[1718905797563,0.1883,64953.0,64946.0,0.001]
[1718905797746,0.1883,64953.0,64942.0,0.00245378]
[1718905797953,0.02845494,64952.0,64942.0,0.00245378]
[1718905798309,0.02845494,64952.0,64939.0,0.00245378]
[1718905798310,0.0801,64948.0,64939.0,0.00245378]
[1718905798509,0.0801,64948.0,64941.0,0.00245378]
[1718905798649,0.0801,64948.0,64940.0,0.00245378]
[1718905798855,0.0801,64948.0,64939.0,0.00245378]
[1718905800374,0.0801,64948.0,64942.0,0.00245378]
[1718905801197,0.0801,64948.0,64939.0,0.0187633]
[1718905801198,0.0801,64948.0,64939.0,0.00245378]
[1718905801403,0.0831,64948.0,64939.0,0.00245378]
[1718905801606,0.12259663,64948.0,64938.0,0.00245378]
[1718905801741,0.0801,64948.0,64941.0,0.00245378]
[1718905801935,0.0801,64948.0,64945.0,0.00245378]
[1718905802155,0.20976634,64953.0,64948.0,0.00245378]
[1718905802360,0.20976634,64953.0,64946.0,0.00245378]
[1718905802784,0.02806634,64953.0,64949.0,0.00245378]
[1718905802986,0.1831,64956.0,64950.0,0.00245378]
[1718905803374,0.1831,64956.0,64948.0,0.00245378]
[1718905803580,0.1831,64956.0,64945.0,0.0187633]
[1718905803581,0.26665712,64956.0,64943.0,0.00245378]
[1718905803777,0.26665712,64956.0,64946.0,0.00245378]
[1718905804100,0.26665712,64956.0,64943.0,0.0187633]
[1718905804101,0.26665712,64956.0,64945.0,0.00245378]
[1718905804309,0.003,64948.0,64942.0,0.00245378]
[1718905804592,0.05518571,64955.0,64946.0,0.00245378]
[1718905804801,0.05342505,64954.0,64946.0,0.00245378]
[1718905805007,0.05342505,64954.0,64947.0,0.00245378]
[1718905805768,0.05342505,64954.0,64946.0,0.00245378]
[1718905805969,0.05342505,64954.0,64946.0,0.00339648]
[1718905806185,0.06142505,64954.0,64946.0,0.00339648]
[1718905806405,0.008,64954.0,64947.0,0.00239648]
[1718905806621,0.008,64954.0,64946.0,0.001]
[1718905806622,0.008,64954.0,64950.0,0.00239648]
[1718905806812,0.008,64954.0,64949.0,0.00239648]
[1718905807577,0.25461951,64956.0,64949.0,0.00239648]
[1718905807778,0.007,64954.0,64947.0,0.00339648]
[1718905808053,0.007,64954.0,64949.0,0.001]
[1718905808697,0.007,64954.0,64946.0,0.00239648]
[1718905808916,0.014,64954.0,64949.0,0.002]
[1718905810693,0.014,64954.0,64950.0,0.00239648]
[1718905810899,0.25461951,64956.0,64950.0,0.00239648]
[1718905810900,0.07151951,64956.0,64955.0,0.00239648]
[1718905811116,0.02415286,64961.0,64958.0,0.00239648]
[1718905811537,0.00406494,64960.0,64954.0,0.00239648]
[1718905811768,0.09765432,64961.0,64955.0,0.00239648]
[1718905811973,0.004066,64960.0,64955.0,0.00239648]
[1718905812194,0.004066,64960.0,64956.0,0.00239648]
[1718905812400,0.09765432,64961.0,64950.0,0.1670409]
[1718905812603,0.00405751,64960.0,64958.0,0.001]
[1718905812854,0.3638,64959.0,64958.0,0.001]
[1718905813047,0.3868,64959.0,64940.0,0.01347978]
[1718905813249,0.07352073,64958.0,64948.0,0.45769034]
[1718905813562,0.07352073,64958.0,64942.0,0.01347978]
[1718905813563,0.1831,64948.0,64942.0,0.01347978]
[1718905813983,0.1831,64948.0,64940.0,0.15256112]
[1718905813984,0.1831,64948.0,64940.0,0.1660409]
[1718905814185,0.20142432,64961.0,64940.0,0.1660409]
[1718905814186,0.1879,64960.0,64946.0,0.01347978]
[1718905814331,0.1879,64960.0,64941.0,0.15256112]
[1718905814332,0.1831,64957.0,64941.0,0.16916521]
[1718905814680,0.2139,64960.0,64941.0,0.18264499]
[1718905814681,0.1831,64952.0,64941.0,0.18264499]
[1718905814836,0.1831,64952.0,64942.0,0.01347978]
[1718905815039,0.1831,64952.0,64942.0,0.01447978]
[1718905815292,0.1831,64952.0,64942.0,0.01347978]
[1718905815684,0.1831,64952.0,64941.0,0.01447978]
[1718905815884,0.1831,64952.0,64942.0,0.001]
[1718905816646,0.05094069,64951.0,64942.0,0.001]
[1718905816857,0.1831,64952.0,64942.0,0.001]
[1718905817281,0.1831,64952.0,64942.0,0.001946]
[1718905817483,0.3275069,64952.0,64942.0,0.001946]
[1718905817838,0.3215069,64952.0,64942.0,0.000946]
[1718905818040,0.3275069,64952.0,64942.0,0.001946]
[1718905818242,0.1906,64946.0,64942.0,0.001946]
[1718905818440,0.1384069,64945.0,64942.0,0.001]
[1718905818607,0.3290069,64946.0,64942.0,0.001]
[1718905818814,0.1384069,64944.0,64942.0,0.001]
[1718905819008,0.13834315,64944.0,64936.0,0.01347978]
[1718905819216,0.13834315,64943.0,64942.0,0.002]
[1718905820459,0.1831,64947.0,64942.0,0.001]
[1718905820661,0.1831,64947.0,64942.0,0.01447978]
[1718905820866,0.001,64946.0,64943.0,0.01347978]
[1718905821107,0.1831,64947.0,64943.0,0.01347978]
[1718905821308,0.1831,64947.0,64942.0,0.01647978]
[1718905821525,0.15562999,64950.0,64944.0,0.01347978]
[1718905821734,0.13834656,64945.0,64944.0,0.01347978]
[1718905821940,0.13834535,64945.0,64944.0,0.01347978]
[1718905822106,0.13834535,64945.0,64944.0,0.10605776]
[1718905822310,0.002,64947.0,64946.0,0.01347978]
[1718905822710,0.18331321,64952.0,64950.0,0.01347978]
[1718905823494,0.13837037,64951.0,64950.0,0.01347978]
[1718905823669,0.13840397,64951.0,64950.0,0.01347978]
[1718905823866,0.1384048,64951.0,64950.0,0.01347978]
[1718905824899,0.1384048,64951.0,64950.0,0.01447978]
[1718905824900,0.1444048,64951.0,64950.0,0.01447978]
[1718905825099,0.1384048,64951.0,64950.0,0.01347978]
[1718905825515,0.04494284,64952.0,64950.0,0.01647978]
[1718905825716,0.18336579,64952.0,64950.0,0.01747978]
[1718905825855,0.13842295,64952.0,64950.0,0.01747978]
[1718905827290,0.13842295,64951.0,64950.0,0.01447978]
[1718905827527,0.13842295,64953.0,64951.0,0.11897978]
[1718905827730,0.13842295,64953.0,64952.0,0.01347978]
[1718905828018,0.13842295,64954.0,64952.0,0.09897978]
[1718905828229,0.13842295,64954.0,64953.0,0.01347978]
[1718905828364,0.04704461,64956.0,64955.0,0.01347978]
[1718905829036,0.04704461,64956.0,64954.0,0.01347978]
[1718905829223,0.18954963,64956.0,64954.0,0.01347978]
[1718905829525,0.18954963,64956.0,64952.0,0.23806112]
[1718905829526,0.0510922,64956.0,64955.0,0.01347978]
[1718905831090,0.04704461,64956.0,64955.0,0.01547978]
[1718905831515,0.0518995,64956.0,64955.0,0.01547978]
[1718905831720,0.0518995,64956.0,64955.0,0.1680409]
[1718905832698,0.0518995,64956.0,64955.0,0.39194499]
[1718905832912,0.0518995,64956.0,64955.0,0.40194499]
[1718905833317,0.0518995,64956.0,64955.0,0.39194499]
[1718905834219,0.0518995,64956.0,64955.0,0.38994499]
[1718905834405,0.0518995,64956.0,64955.0,0.3540409]
[1718905834584,0.0528995,64956.0,64955.0,0.3680409]
[1718905834789,0.0518995,64956.0,64955.0,0.3540409]
[1718905835188,0.0518995,64956.0,64955.0,0.3630409]
[1718905835387,0.0518995,64956.0,64955.0,0.3570409]
[1718905835602,0.0518995,64956.0,64955.0,0.3540409]
[1718905835808,0.0528995,64956.0,64955.0,0.3680409]
[1718905836010,0.0528995,64956.0,64955.0,0.3650409]
[1718905836011,0.0518995,64956.0,64955.0,0.3650409]
[1718905836477,0.0518995,64956.0,64955.0,0.2697409]
[1718905836764,0.0518995,64956.0,64922.0,0.12239997]
[1718905836765,0.0518995,64956.0,64954.0,0.01347978]
[1718905836925,0.0518995,64956.0,64950.0,0.1119]
[1718905836926,0.0518995,64956.0,64955.0,0.02347978]
[1718905837129,0.0518995,64956.0,64955.0,0.2623409]
[1718905837333,0.0518995,64956.0,64955.0,0.3742409]
[1718905837514,0.0528995,64956.0,64955.0,0.3862409]
[1718905837855,0.0518995,64956.0,64955.0,0.3742409]
[1718905838210,0.0528995,64956.0,64955.0,0.3702409]
[1718905838408,0.0518995,64956.0,64955.0,0.3762409]
[1718905838837,0.0528995,64956.0,64955.0,0.3862409]
[1718905839039,0.0528995,64956.0,64955.0,0.3742409]
[1718905839405,0.0528995,64956.0,64955.0,0.3822409]
[1718905839647,0.0528995,64956.0,64955.0,0.2959409]
[1718905840737,0.04804461,64956.0,64955.0,0.2959409]
[1718905841153,0.05264737,64956.0,64955.0,0.2959409]
[1718905841522,0.04804461,64956.0,64955.0,0.2959409]
[1718905841753,0.04804461,64956.0,64955.0,0.28246112]
[1718905842297,0.05264737,64956.0,64955.0,0.28246112]
[1718905842695,0.05264737,64956.0,64955.0,0.2959409]
[1718905844264,0.05264737,64956.0,64955.0,0.03147978]
[1718905844462,0.05264737,64956.0,64955.0,0.018]
[1718905844727,0.05264737,64956.0,64955.0,0.0149924]
[1718905845386,0.19100126,64956.0,64955.0,0.0069924]
[1718905845594,0.19100126,64956.0,64950.0,0.01347978]
[1718905845595,0.05164737,64956.0,64949.0,0.01347978]
[1718905845795,0.05164737,64956.0,64955.0,0.01]
[1718905845796,0.19103004,64956.0,64955.0,0.01]
[1718905846044,0.05264737,64956.0,64955.0,0.01]
[1718905846461,0.05264737,64956.0,64955.0,0.006]
[1718905847857,0.05264737,64956.0,64955.0,0.1981]
[1718905848053,0.05264737,64956.0,64955.0,0.21157978]
[1718905848231,0.05264737,64956.0,64955.0,0.3641409]
[1718905848429,0.05264737,64956.0,64955.0,0.3681409]
[1718905848630,0.05264737,64956.0,64955.0,0.35466112]
[1718905848831,0.05264737,64956.0,64955.0,0.3681409]
[1718905850140,0.04804461,64956.0,64955.0,0.01]
[1718905850521,0.05266582,64956.0,64955.0,0.01]
[1718905851743,0.19107873,64956.0,64955.0,0.01]
[1718905851906,0.05266582,64956.0,64955.0,0.01]
[1718905852102,0.19107877,64956.0,64955.0,0.01]
[1718905852295,0.05266582,64956.0,64955.0,0.01]
[1718905853557,0.19108448,64956.0,64955.0,0.01]
[1718905853762,0.05266582,64956.0,64955.0,0.01]
[1718905855383,0.09422987,64956.0,64955.0,0.01]
[1718905855609,0.1968,64955.0,64941.0,0.01347978]
[1718905855811,0.1831,64945.0,64941.0,0.01347978]
[1718905856069,0.1831,64945.0,64940.0,0.01347978]
[1718905856070,0.0044788,64944.0,64940.0,0.01347978]
[1718905856268,0.0044788,64944.0,64939.0,0.1124]
[1718905856269,0.02323668,64944.0,64939.0,0.01347978]
[1718905856583,0.02323668,64944.0,64929.0,0.01347978]
[1718905856584,0.111,64943.0,64929.0,0.01347978]
[1718905856780,0.111,64943.0,64932.0,0.01347978]
[1718905857040,0.11545814,64943.0,64942.0,0.002946]
[1718905858409,0.00445814,64943.0,64942.0,0.000946]
[1718905858616,0.00445814,64943.0,64942.0,0.001946]
[1718905858617,0.16007226,64943.0,64942.0,0.001946]
[1718905858819,0.15561412,64943.0,64942.0,0.001946]
[1718905859091,0.00849271,64943.0,64942.0,0.001946]
[1718905859213,0.01749271,64943.0,64942.0,0.001946]
[1718905859759,0.01749271,64943.0,64942.0,0.000946]
[1718905859760,0.00449271,64943.0,64942.0,0.000946]